fUST/lending_fUST_20240430
["ID","MTS","AMOUNT","RATE_DAILY","PERIOD"]
[324925940,1714425042255,-151.0,0.0003717,2]
[324925942,1714425042265,-897.634451,0.0003717,2]
[324925944,1714425042274,-897.634451,0.0003717,2]
[324925946,1714425042283,-151.0,0.0003717,2]
[324925948,1714425042292,-151.0,0.0003717,2]
[324925950,1714425042301,-3916.878664,0.0003717,2]
[324925952,1714425042311,-3916.878664,0.0003717,2]
[324925954,1714425042320,-409.951757,0.0003717,2]
[324925955,1714425042329,-409.951757,0.0003717,2]
[324925957,1714425042338,-186.386089,0.0003717,2]
[324925958,1714425042347,-155.11008545,0.0003745,7]
[324925959,1714425042356,-151.0,0.000375,2]
[324925960,1714425042365,-151.0,0.000375,2]
[324925961,1714425042374,-151.0,0.000375,2]
[324925962,1714425042384,-151.0,0.000375,2]
[324925963,1714425042393,-3000.0,0.000375,32]
[324925964,1714425042407,-151.0,0.000375,2]
[324925965,1714425042417,-961.113768,0.000375,2]
[324925966,1714425042426,-961.113768,0.000375,2]
[324925967,1714425042436,-245.535074,0.000375,2]
[324925968,1714425042447,-245.535074,0.000375,2]
[324925969,1714425042457,-3000.0,0.0003751,32]
[324925970,1714425042466,-1000.0,0.0003751,3]
[324925971,1714425042475,-3000.0,0.0003752,32]
[324925972,1714425042485,-3000.0,0.0003753,32]
[324925973,1714425042495,-1200.85380881,0.0003754,32]
[324925974,1714425042506,-1544.13388645,0.0003754,32]
[324926048,1714425043647,-10140.22158926,0.00031577,3]
[324926050,1714425043660,-46230.72841074,0.00031577,3]
[324926052,1714425043669,-186.386089,0.00036,2]
[324926054,1714425043679,-746.779422,0.00036,2]
[324926056,1714425043689,-186.386089,0.0003717,2]
[324926058,1714425043698,-746.779422,0.0003717,2]
[324926060,1714425043707,-255.01230474,0.0003754,32]
[324926061,1714425043717,-151.0,0.0003754,2]
[324926062,1714425043726,-601.229399,0.0003754,2]
[324926063,1714425043735,-601.229399,0.0003754,2]
[324926064,1714425043744,-151.0,0.0003754,2]
[324926066,1714425043753,-2754.504831,0.0003754,2]
[324926067,1714425043763,-2754.504831,0.0003754,2]
[324926069,1714425043771,-151.0,0.0003754,2]
[324926071,1714425043781,-151.0,0.0003755,2]
[324926072,1714425043790,-151.0,0.0003755,2]
[324926073,1714425043799,-690.679428,0.0003755,2]
[324926074,1714425043808,-690.679428,0.0003755,2]
[324926075,1714425043818,-3000.0,0.0003755,32]
[324926076,1714425043827,-607.037688,0.0003755,2]
[324926077,1714425043836,-607.037688,0.0003755,2]
[324926078,1714425043845,-242.839787,0.0003755,2]
[324926079,1714425043854,-242.839787,0.0003755,2]
[324926080,1714425043863,-3000.0,0.0003756,32]
[324926081,1714425043872,-153.36964,0.0003757,2]
[324926083,1714425043881,-153.36964,0.0003757,2]
[324926085,1714425043890,-3000.0,0.0003757,32]
[324926087,1714425043900,-3000.0,0.0003758,32]
[324926089,1714425043909,-3000.0,0.0003759,32]
[324926091,1714425043918,-3000.0,0.000376,32]
[324926093,1714425043927,-3000.0,0.0003761,32]
[324926095,1714425043936,-3000.0,0.0003762,32]
[324926097,1714425043944,-3000.0,0.0003763,32]
[324926099,1714425043953,-3000.0,0.0003764,32]
[324926101,1714425043963,-3000.0,0.0003765,32]
[324926103,1714425043972,-3000.0,0.0003766,32]
[324926105,1714425043981,-1089.27517815,0.0003776,7]
[324926107,1714425043990,-1366.26453115,0.00037908,4]
[324926109,1714425043999,-155.11008545,0.00037921,7]
[324926111,1714425044008,-155.11008545,0.00037975,7]
[324926113,1714425044018,-243.88610161,0.0003799,7]
[324926115,1714425044027,-150.0,0.00037999,2]
[324926117,1714425044036,-5009.79512819,0.00038,2]
[324926119,1714425044045,-500.0,0.00038289,10]
[324926121,1714425044054,-243.88610161,0.00038356,7]
[324926123,1714425044063,-155.11008545,0.00038451,7]
[324926125,1714425044073,-153.50538082,0.00038862,7]
[324926127,1714425044082,-153.50538082,0.0003896,7]
[324926129,1714425044091,-150.0,0.00039235,2]
[324926131,1714425044102,-417.0,0.00039322,2]
[324926133,1714425044110,-150.0,0.00039322,2]
[324926135,1714425044119,-232.10092761,0.00039397,30]
[324926137,1714425044128,-500.0,0.00039659,10]
[324926139,1714425044137,-153.50538082,0.00039673,7]
[324926141,1714425044146,-152.77728267,0.00039706,7]
[324926143,1714425044157,-153.50538082,0.00039718,7]
[324926145,1714425044168,-243.88610161,0.00039803,7]
[324926147,1714425044177,-1000.0,0.00039807,2]
[324926149,1714425044186,-1159.84144778,0.0003988,120]
[324926151,1714425044196,-75170.20073599,0.0003996,2]
[324926219,1714425044816,-4137.40301136,0.0003996,2]
[324926221,1714425044825,-151.0,0.0003996,2]
[324926223,1714425044834,-151.0,0.0003996,2]
[324926225,1714425044843,-151.0,0.0003996,2]
[324926227,1714425044853,-690.679428,0.0003996,2]
[324926229,1714425044862,-690.679428,0.0003996,2]
[324926231,1714425044871,-151.0,0.0003996,2]
[324926233,1714425044880,-151.0,0.0003996,2]
[324926235,1714425044889,-257.461812,0.0003996,2]
[324926237,1714425044898,-257.461812,0.0003996,2]
[324926239,1714425044908,-151.0,0.0003996,2]
[324926241,1714425044917,-151.0,0.0003996,2]
[324926243,1714425044927,-151.0,0.0003996,2]
[324926244,1714425044937,-151.0,0.0003996,2]
[324926246,1714425044947,-961.113768,0.0003996,2]
[324926248,1714425044957,-961.113768,0.0003996,2]
[324926250,1714425044966,-245.535074,0.0003996,2]
[324926252,1714425044976,-245.535074,0.0003996,2]
[324926254,1714425044985,-607.037688,0.0003996,2]
[324926255,1714425044994,-607.037688,0.0003996,2]
[324926257,1714425045004,-242.839787,0.0003996,2]
[324926259,1714425045013,-242.839787,0.0003996,2]
[324926261,1714425045023,-874.261483,0.0003996,2]
[324926263,1714425045032,-874.261483,0.0003996,2]
[324926265,1714425045042,-1664.089055,0.0003996,2]
[324926266,1714425045051,-1664.089055,0.0003996,2]
[324926268,1714425045060,-151.0,0.0003996,2]
[324926270,1714425045070,-389.794286,0.0003996,2]
[324926271,1714425045079,-389.794286,0.0003996,2]
[324926273,1714425045089,-151.0,0.0003996,2]
[324926275,1714425045098,-1151.577001,0.0003996,2]
[324926277,1714425045107,-1151.577001,0.0003996,2]
[324926278,1714425045116,-151.0,0.0003996,2]
[324926280,1714425045125,-399.706225,0.0003996,2]
[324926282,1714425045135,-399.706225,0.0003996,2]
[324926284,1714425045149,-151.0,0.0003996,2]
[324926286,1714425045159,-897.634451,0.0003996,2]
[324926288,1714425045168,-897.634451,0.0003996,2]
[324926290,1714425045178,-601.229399,0.0003996,2]
[324926292,1714425045187,-601.229399,0.0003996,2]
[324926293,1714425045196,-151.0,0.0003996,2]
[324926295,1714425045206,-2754.504831,0.0003996,2]
[324926296,1714425045215,-2754.504831,0.0003996,2]
[324926297,1714425045224,-151.0,0.0003996,2]
[324926298,1714425045233,-151.0,0.0003996,2]
[324926299,1714425045243,-3916.878664,0.0003996,2]
[324926300,1714425045252,-3916.878664,0.0003996,2]
[324926301,1714425045262,-409.951757,0.0003996,2]
[324926302,1714425045271,-409.951757,0.0003996,2]
[324926303,1714425045281,-186.386089,0.0003996,2]
[324926304,1714425045293,-186.386089,0.0003996,2]
[324926305,1714425045303,-746.779422,0.0003996,2]
[324926306,1714425045312,-5317.07857696,0.0004,4]
[324926307,1714425045321,-7480.50380699,0.0004,2]
[324926308,1714425045330,-26617.19104662,0.0004,7]
[324926309,1714425045339,-243.88610161,0.00040004,30]
[324926310,1714425045349,-1000.0,0.00040014,2]
[324926311,1714425045358,-155.11008545,0.00040054,30]
[324926312,1714425045367,-243.88610161,0.00040223,30]
[324926313,1714425045377,-1079.26285867,0.00040239,2]
[324926314,1714425045386,-1000.0,0.00040388,2]
[324926315,1714425045396,-153.0,0.00040438,2]
[324926316,1714425045408,-244.7139,0.00040548,2]
[324926317,1714425045418,-237.690441,0.00040548,2]
[324926318,1714425045427,-1000.0,0.00040704,2]
[324926319,1714425045437,-1000.0,0.00040797,2]
[324926320,1714425045448,-155.11008545,0.0004094,30]
[324926321,1714425045457,-153.93095889,0.00040986,30]
[324926322,1714425045466,-315.85749038,0.00041,2]
[324926323,1714425045475,-162.0,0.00041,14]
[324926324,1714425045485,-156.18617837,0.00041001,30]
[324926325,1714425045494,-500.0,0.00041029,10]
[324926326,1714425045504,-1000.0,0.00041071,2]
[324926327,1714425045513,-402.56689138,0.00041096,30]
[324926328,1714425045522,-500.0,0.00041096,31]
[324926329,1714425045532,-500.0,0.00041096,31]
[324926330,1714425045541,-500.0,0.00041096,31]
[324926331,1714425045550,-500.0,0.00041096,31]
[324926332,1714425045559,-500.0,0.00041096,31]
[324926333,1714425045568,-500.0,0.00041096,31]
[324926334,1714425045578,-500.0,0.00041096,31]
[324926335,1714425045586,-500.0,0.00041096,31]
[324926336,1714425045595,-500.0,0.00041096,31]
[324926337,1714425045605,-500.0,0.00041096,31]
[324926338,1714425045614,-500.0,0.00041096,31]
[324926339,1714425045623,-500.0,0.00041096,31]
[324926340,1714425045632,-500.0,0.00041096,31]
[324926341,1714425045641,-500.0,0.00041096,31]
[324926342,1714425045651,-500.0,0.00041096,31]
[324926343,1714425045661,-321.24970218,0.00041096,31]
[324926344,1714425045671,-500.0,0.00041096,31]
[324926345,1714425045680,-500.0,0.00041096,31]
[324926346,1714425045689,-500.0,0.00041096,31]
[324926347,1714425045698,-500.0,0.00041096,31]
[324926348,1714425045707,-500.0,0.00041096,31]
[324926349,1714425045717,-500.0,0.00041096,31]
[324926350,1714425045727,-500.0,0.00041096,31]
[324926351,1714425045736,-500.0,0.00041096,31]
[324926352,1714425045746,-423.3927295,0.00041096,31]
[324926353,1714425045755,-500.0,0.00041096,31]
[324926354,1714425045764,-500.0,0.00041096,31]
[324926355,1714425045774,-500.0,0.00041096,31]
[324926356,1714425045783,-500.0,0.00041096,31]
[324926357,1714425045792,-500.0,0.00041096,31]
[324926358,1714425045801,-500.0,0.00041096,31]
[324926359,1714425045810,-500.0,0.00041096,31]
[324926360,1714425045820,-500.0,0.00041096,31]
[324926361,1714425045829,-500.0,0.00041096,31]
[324926362,1714425045838,-500.0,0.00041096,31]
[324926363,1714425045847,-500.0,0.00041096,31]
[324926364,1714425045856,-500.0,0.00041096,31]
[324926365,1714425045865,-500.0,0.00041096,31]
[324926366,1714425045874,-500.0,0.00041096,31]
[324926367,1714425045883,-500.0,0.00041096,31]
[324926368,1714425045892,-500.0,0.00041096,31]
[324926369,1714425045901,-500.0,0.00041096,31]
[324926370,1714425045911,-500.0,0.00041096,31]
[324926371,1714425045920,-500.0,0.00041096,31]
[324926372,1714425045930,-500.0,0.00041096,31]
[324926373,1714425045939,-500.0,0.00041096,31]
[324926374,1714425045948,-500.0,0.00041096,31]
[324926375,1714425045957,-500.0,0.00041096,31]
[324926376,1714425045966,-500.0,0.00041096,31]
[324926377,1714425045975,-500.0,0.00041096,31]
[324926378,1714425045984,-500.0,0.00041096,31]
[324926379,1714425045992,-153.93095889,0.00041185,30]
[324926380,1714425046002,-404.099999,0.000414,15]
[324926381,1714425046011,-1000.0,0.00041403,7]
[324926382,1714425046020,-243.88610187,0.0004152,30]
[324926383,1714425046029,-3139.531024,0.00041553,120]
[324926384,1714425046039,-153.50538087,0.00041617,30]
[324926385,1714425046048,-155.11008551,0.00041868,30]
[324926386,1714425046057,-444.38453395,0.00042,120]
[324926387,1714425046067,-248.551644,0.00042,7]
[324926388,1714425046076,-248.551644,0.00042,7]
[324926389,1714425046085,-153.36964,0.00042,7]
[324926390,1714425046094,-153.36964,0.00042,7]
[324926391,1714425046103,-151.0,0.00042,7]
[324926392,1714425046112,-40000.00197924,0.00042,5]
[324926393,1714425046122,-151.0,0.00042,7]
[324926394,1714425046131,-151.0,0.00042,7]
[324926395,1714425046140,-690.679428,0.00042,7]
[324926396,1714425046150,-690.679428,0.00042,7]
[324926397,1714425046160,-151.0,0.00042,7]
[324926399,1714425046169,-151.0,0.00042,7]
[324926401,1714425046178,-257.461812,0.00042,7]
[324926402,1714425046187,-257.461812,0.00042,7]
[324926405,1714425046196,-151.0,0.00042,7]
[324926406,1714425046205,-165.542015,0.00042,7]
[324926408,1714425046214,-151.0,0.00042,7]
[324926410,1714425046223,-961.113768,0.00042,7]
[324926412,1714425046232,-961.113768,0.00042,7]
[324926414,1714425046241,-245.535074,0.00042,7]
[324926416,1714425046250,-245.535074,0.00042,7]
[324926417,1714425046260,-607.037688,0.00042,7]
[324926418,1714425046269,-607.037688,0.00042,7]
[324926419,1714425046278,-242.839787,0.00042,7]
[324926421,1714425046287,-242.839787,0.00042,7]
[324926423,1714425046296,-874.261483,0.00042,7]
[324926424,1714425046305,-874.261483,0.00042,7]
[324926425,1714425046314,-1664.089055,0.00042,7]
[324926426,1714425046323,-1664.089055,0.00042,7]
[324926427,1714425046332,-588.0,0.00042,30]
[324926428,1714425046341,-151.0,0.00042,7]
[324926430,1714425046351,-389.794286,0.00042,7]
[324926432,1714425046359,-389.794286,0.00042,7]
[324926434,1714425046368,-151.0,0.00042,7]
[324926435,1714425046377,-1151.577001,0.00042,7]
[324926437,1714425046386,-1151.577001,0.00042,7]
[324926439,1714425046395,-2673.1589257,0.00042,30]
[324926441,1714425046408,-10000.0,0.00042,30]
[324926442,1714425046417,-16042.01768988,0.00042,30]
[324926444,1714425046427,-399.706225,0.00042,7]
[324926446,1714425046436,-399.706225,0.00042,7]
[324926448,1714425046447,-151.0,0.00042,7]
[324926450,1714425046457,-805.06024593,0.00042,30]
[324926451,1714425046466,-897.634451,0.00042,7]
[324926453,1714425046474,-897.634451,0.00042,7]
[324926455,1714425046485,-601.229399,0.00042,7]
[324926457,1714425046495,-601.229399,0.00042,7]
[324926459,1714425046504,-151.0,0.00042,7]
[324926460,1714425046513,-2754.504831,0.00042,7]
[324926461,1714425046522,-2754.504831,0.00042,7]
[324926462,1714425046531,-151.0,0.00042,7]
[324926463,1714425046541,-244.218066,0.00042,3]
[324926464,1714425046550,-3916.878664,0.00042,7]
[324926465,1714425046558,-3916.878664,0.00042,7]
[324926466,1714425046567,-409.951757,0.00042,7]
[324926467,1714425046578,-409.951757,0.00042,7]
[324926468,1714425046587,-186.386089,0.00042,7]
[324926469,1714425046597,-186.386089,0.00042,7]
[324926470,1714425046607,-746.779422,0.00042,7]
[324926471,1714425046618,-151.0,0.00042019,7]
[324926472,1714425046628,-233.5,0.00042093,35]
[324926473,1714425046637,-249.19,0.00042093,7]
[324926474,1714425046647,-150.5,0.00042093,35]
[324926475,1714425046657,-150.5,0.00042093,35]
[324926476,1714425046666,-150.5,0.00042093,35]
[324926477,1714425046675,-150.5,0.00042093,35]
[324926478,1714425046684,-756.0,0.00042093,35]
[324926479,1714425046693,-169.366558,0.000421,2]
[324926480,1714425046703,-150.5,0.00042103,35]
[324926481,1714425046712,-150.5,0.00042103,7]
[324926482,1714425046721,-150.5,0.00042103,35]
[324926483,1714425046731,-150.5,0.00042103,35]
[324926484,1714425046740,-150.5,0.00042103,35]
[324926485,1714425046750,-150.5,0.00042103,35]
[324926486,1714425046759,-756.0,0.00042103,35]
[324926487,1714425046768,-150.5,0.00042113,35]
[324926488,1714425046779,-150.5,0.00042113,7]
[324926489,1714425046788,-150.5,0.00042113,35]
[324926490,1714425046798,-150.5,0.00042113,35]
[324926491,1714425046807,-150.5,0.00042113,35]
[324926492,1714425046816,-150.5,0.00042113,35]
[324926493,1714425046825,-756.0,0.00042113,35]
[324926494,1714425046835,-2401.59068717,0.0004212,2]
[324926495,1714425046844,-1452.47576498,0.0004212,4]
[324926496,1714425046854,-154.78330338,0.0004212,15]
[324926497,1714425046863,-2000.0,0.0004212,2]
[324926498,1714425046872,-6073.25093483,0.0004212,20]
[324926499,1714425046881,-154.78330338,0.0004212,68]
[324926500,1714425046890,-9742.08348567,0.0004212,120]
[324926501,1714425046899,-1438082.97370875,0.00042123,90]
[324926502,1714425046910,-248.551644,0.00042123,7]
[324926503,1714425046918,-248.551644,0.00042123,7]
[324926504,1714425046927,-153.36964,0.00042123,7]
[324926505,1714425046936,-153.36964,0.00042123,7]
[324926506,1714425046945,-282.874941,0.00042123,7]
[324926507,1714425046954,-151.0,0.00042123,7]
[324926508,1714425046963,-151.0,0.00042123,7]
[324926509,1714425046973,-690.679428,0.00042123,7]
[324926510,1714425046983,-690.679428,0.00042123,7]
[324926511,1714425046993,-151.0,0.00042123,7]
[324926512,1714425047002,-151.0,0.00042123,7]
[324926513,1714425047011,-257.461812,0.00042123,7]
[324926514,1714425047020,-257.461812,0.00042123,7]
[324926515,1714425047030,-151.0,0.00042123,7]
[324926516,1714425047039,-961.113768,0.00042123,7]
[324926517,1714425047048,-961.113768,0.00042123,7]
[324926518,1714425047057,-245.535074,0.00042123,7]
[324926519,1714425047066,-245.535074,0.00042123,7]
[324926520,1714425047075,-607.037688,0.00042123,7]
[324926521,1714425047084,-607.037688,0.00042123,7]
[324926522,1714425047093,-242.839787,0.00042123,7]
[324926523,1714425047102,-242.839787,0.00042123,7]
[324926524,1714425047111,-874.261483,0.00042123,7]
[324926525,1714425047119,-874.261483,0.00042123,7]
[324926526,1714425047129,-1664.089055,0.00042123,7]
[324926527,1714425047243,-1664.089055,0.00042123,7]
[324926528,1714425047252,-151.0,0.00042123,7]
[324926529,1714425047261,-389.794286,0.00042123,7]
[324926530,1714425047270,-389.794286,0.00042123,7]
[324926531,1714425047279,-151.0,0.00042123,7]
[324926532,1714425047288,-1151.577001,0.00042123,7]
[324926533,1714425047297,-1151.577001,0.00042123,7]
[324926534,1714425047306,-399.706225,0.00042123,7]
[324926535,1714425047315,-399.706225,0.00042123,7]
[324926536,1714425047324,-151.0,0.00042123,7]
[324926537,1714425047333,-897.634451,0.00042123,7]
[324926538,1714425047342,-897.634451,0.00042123,7]
[324926539,1714425047351,-601.229399,0.00042123,7]
[324926540,1714425047360,-601.229399,0.00042123,7]
[324926541,1714425047369,-151.0,0.00042123,7]
[324926542,1714425047378,-2754.504831,0.00042123,7]
[324926543,1714425047387,-2754.504831,0.00042123,7]
[324926544,1714425047396,-151.0,0.00042123,7]
[324926545,1714425047411,-3916.878664,0.00042123,7]
[324926546,1714425047420,-3916.878664,0.00042123,7]
[324926547,1714425047429,-409.951757,0.00042123,7]
[324926548,1714425047439,-409.951757,0.00042123,7]
[324926549,1714425047449,-186.386089,0.00042123,7]
[324926550,1714425047458,-186.386089,0.00042123,7]
[324926551,1714425047467,-150.0,0.00042235,2]
[324926552,1714425047477,-150.0,0.00042241,60]
[324926553,1714425047488,-417.0,0.00042322,2]
[324926554,1714425047497,-150.0,0.00042322,2]
[324926555,1714425047507,-1000.0,0.00042352,7]
[324926556,1714425047515,-500.0,0.00042399,10]
[324926557,1714425047525,-300.0,0.000424,16]
[324926558,1714425047533,-1637.93310082,0.000424,120]
[324926559,1714425047542,-1000.0,0.000425,2]
[324926560,1714425047552,-629.62943843,0.000425,120]
[324926561,1714425047561,-1000.0,0.00042619,7]
[324926562,1714425047570,-1000.0,0.00042681,7]
[324926563,1714425047579,-1000.0,0.0004269,7]
[324926564,1714425047588,-150.0,0.00042767,60]
[324926565,1714425047598,-872.86567335,0.000428,60]
[324926566,1714425047607,-1000.0,0.00042805,7]
[324926567,1714425047616,-1000.0,0.00042863,7]
[324926568,1714425047626,-1000.0,0.0004288,7]
[324926569,1714425047635,-1000.0,0.00042909,7]
[324926570,1714425047644,-1000.0,0.0004294,7]
[324926571,1714425047654,-500.0,0.0004299,120]
[324926572,1714425047665,-548.39,0.0004299,120]
[324926573,1714425047674,-5000.000001,0.00043,120]
[324926574,1714425047683,-2672.0,0.00043,30]
[324926575,1714425047693,-10000.0,0.00043,30]
[324926576,1714425047702,-16042.0,0.00043,30]
[324926577,1714425047711,-805.0,0.00043,30]
[324926578,1714425047720,-162.0,0.00043151,90]
[324926579,1714425047729,-645.7,0.0004323,30]
[324926580,1714425047739,-500.0,0.00043391,8]
[324926581,1714425047748,-300.0,0.000434,18]
[324926582,1714425047758,-1000.0,0.00043458,7]
[324926583,1714425047767,-1000.0,0.00043467,7]
[324926584,1714425047776,-1000.0,0.00043483,7]
[324926585,1714425047785,-1000.0,0.00043489,7]
[324926586,1714425047796,-1000.0,0.00043494,7]
[324926587,1714425047808,-1000.0,0.00043727,7]
[324926588,1714425047818,-1000.0,0.0004374,7]
[324926589,1714425047830,-500.0,0.00043769,10]
[324926590,1714425047839,-317.78682225,0.00043785,7]
[324926591,1714425047848,-500.0,0.00043835,30]
[324926592,1714425047858,-500.0,0.00043835,30]
[324926593,1714425047869,-500.0,0.00043835,30]
[324926594,1714425047879,-500.01281628,0.00043835,2]
[324926595,1714425047890,-311.42710708,0.00043835,30]
[324926596,1714425047901,-500.0,0.00043835,30]
[324926597,1714425047911,-500.0,0.00043835,30]
[324926598,1714425047920,-500.0,0.00043835,30]
[324926599,1714425047931,-500.0,0.00043835,30]
[324926600,1714425047942,-500.0,0.00043835,30]
[324926601,1714425047952,-500.0,0.00043835,30]
[324926602,1714425047962,-500.0,0.00043835,30]
[324926603,1714425047972,-500.0,0.00043835,30]
[324926604,1714425047981,-500.0,0.00043835,30]
[324926605,1714425047991,-500.0,0.00043835,30]
[324926606,1714425048001,-500.0,0.00043835,30]
[324926607,1714425048011,-500.0,0.00043835,30]
[324926608,1714425048020,-500.0,0.00043835,30]
[324926609,1714425048030,-220.30316345,0.00043835,30]
[324926610,1714425048039,-622.24,0.00043835,30]
[324926611,1714425048048,-500.0,0.00043835,30]
[324926612,1714425048058,-518.13411356,0.00043835,30]
[324926613,1714425048069,-500.0,0.00043835,30]
[324926614,1714425048082,-500.0,0.00043835,30]
[324926615,1714425048091,-500.0,0.00043835,30]
[324926616,1714425048100,-500.0,0.00043835,30]
[324926617,1714425048109,-500.0,0.00043835,30]
[324926618,1714425048118,-500.20722599,0.00043835,30]
[324926619,1714425048127,-500.0,0.00043835,30]
[324926620,1714425048137,-500.0,0.00043835,30]
[324926621,1714425048146,-500.0,0.00043835,30]
[324926622,1714425048157,-500.0,0.00043835,30]
[324926623,1714425048167,-500.0,0.00043835,30]
[324926624,1714425048176,-500.0,0.00043835,30]
[324926625,1714425048185,-948.71,0.00043835,30]
[324926626,1714425048198,-254.98552436,0.00043835,30]
[324926627,1714425048208,-500.0,0.00043835,30]
[324926628,1714425048217,-500.0,0.00043835,30]
[324926629,1714425048227,-659.07,0.00043835,30]
[324926630,1714425048236,-500.0,0.00043835,30]
[324926631,1714425048245,-500.0,0.00043835,30]
[324926632,1714425048255,-500.0,0.00043835,30]
[324926633,1714425048264,-467.126,0.00043835,30]
[324926634,1714425048273,-500.0,0.00043835,30]
[324926635,1714425048282,-248.551644,0.00043835,7]
[324926636,1714425048291,-248.551644,0.00043835,7]
[324926637,1714425048300,-248.551644,0.00043835,7]
[324926638,1714425048310,-500.0,0.00043835,30]
[324926639,1714425048319,-248.551644,0.00043835,7]
[324926640,1714425048328,-248.551644,0.00043835,7]
[324926641,1714425048337,-248.551644,0.00043835,7]
[324926642,1714425048346,-500.0,0.00043835,30]
[324926643,1714425048355,-153.36964,0.00043835,7]
[324926644,1714425048364,-153.36964,0.00043835,7]
[324926645,1714425048373,-153.36964,0.00043835,7]
[324926646,1714425048382,-507.98,0.00043835,30]
[324926647,1714425048391,-153.36964,0.00043835,7]
[324926648,1714425048400,-500.0,0.00043835,30]
[324926649,1714425048417,-153.36964,0.00043835,7]
[324926650,1714425048426,-153.36964,0.00043835,7]
[324926651,1714425048436,-579.98,0.00043835,30]
[324926652,1714425048447,-500.0,0.00043835,30]
[324926653,1714425048456,-500.0,0.00043835,30]
[324926654,1714425048465,-656.33,0.00043835,30]
[324926655,1714425048474,-500.0,0.00043835,30]
[324926656,1714425048484,-508.58016675,0.00043835,30]
[324926657,1714425048493,-500.0,0.00043835,30]
[324926658,1714425048503,-500.0,0.00043835,30]
[324926659,1714425048512,-500.0,0.00043835,30]
[324926660,1714425048521,-1041.2732567,0.00043835,14]
[324926661,1714425048530,-500.0,0.00043835,30]
[324926662,1714425048539,-500.0,0.00043835,30]
[324926663,1714425048549,-500.0,0.00043835,30]
[324926664,1714425048558,-500.0,0.00043835,30]
[324926665,1714425048567,-559.06,0.00043835,30]
[324926666,1714425048577,-500.0,0.00043835,30]
[324926667,1714425048586,-296.55230375,0.00043835,30]
[324926668,1714425048595,-500.0,0.00043835,30]
[324926669,1714425048605,-500.0,0.00043835,30]
[324926670,1714425048614,-500.0,0.00043835,30]
[324926671,1714425048623,-500.0,0.00043835,30]
[324926672,1714425048633,-550.44,0.00043835,30]
[324926673,1714425048642,-500.0,0.00043835,30]
[324926674,1714425048651,-500.0,0.00043835,30]
[324926675,1714425048664,-500.0,0.00043835,30]
[324926676,1714425048673,-500.0,0.00043835,30]
[324926677,1714425048683,-564.21,0.00043835,30]
[324926678,1714425048692,-500.0,0.00043835,30]
[324926679,1714425048701,-500.0,0.00043835,30]
[324926680,1714425048711,-500.0,0.00043835,30]
[324926681,1714425048720,-500.0,0.00043835,30]
[324926682,1714425048730,-554.47489093,0.00043835,30]
[324926683,1714425048739,-500.0,0.00043835,30]
[324926684,1714425048749,-500.0,0.00043835,30]
[324926685,1714425048758,-500.0,0.00043835,30]
[324926686,1714425048768,-500.0,0.00043835,30]
[324926687,1714425048777,-500.0,0.00043835,30]
[324926688,1714425048787,-500.0,0.00043835,30]
[324926689,1714425048796,-500.0,0.00043835,30]
[324926690,1714425048807,-500.0,0.00043835,30]
[324926691,1714425048816,-500.0,0.00043835,30]